[Event "53rd Women Tournament 2022"]
[Site "Belgrade"]
[Date "2022.03.28"]
[Round "1.1"]
[White "Toncheva, Nadya"]
[Black "Chelushkina, Irina"]
[Result "1/2-1/2"]
[ECO "A84"]
[WhiteElo "2207"]
[BlackElo "2183"]
[Annotator "NA"]
[PlyCount "85"]
[EventDate "2022.03.28"]
[EventType "tourn"]
[EventCountry "SRB"]
[SourceTitle "playchess.com"]
[Source "ChessBase"]
[SourceQuality "1"]
[TimeControl "40/5400+30:1800+30"]

1. d4 {[%emt 0:00:02]} e6 {[%emt 0:00:09]} 2. c4 {[%emt 0:00:24]} f5 {[%emt 0:00:12]} 3. Nc3 {[%emt 0:00:21]} Nf6 {[%emt 0:00:06]} 4. e3 {[%emt 0:00:18]} c6 {[%emt 0:00:47]} 5. Nf3 {[%emt 0:01:47]} d5 {[%emt 0:00:11]} 6. Ne5 {[%emt 0:00:37]} Bd6 {[%emt 0:02:39]} 7. f4 {[%emt 0:02:55]} O-O {[%emt 0:00:07]} 8. Be2 {[%emt 0:01:38]} b6 {[%emt 0:04:38]} 9. O-O {[%emt 0:03:45]} Bb7 {[%emt 0:00:07]} 10. b3 {[%emt 0:03:35]} Na6 {[%emt 0:01:21]} 11. Bb2 {[%emt 0:02:07]} Nc7 {[%emt 0:00:42]} 12. Qd3 {[%emt 0:10:31]} Ne4 {[%emt 0:08:52]} 13. Rac1 {[%emt 0:05:29]} Ne8 {[%emt 0:04:27]} 14. Nxe4 {[%emt 0:08:18]} dxe4 {[%emt 0:03:28]} 15. Qc2 {[%emt 0:00:49]} Nf6 {[%emt 0:01:04]} 16. Rfd1 {[%emt 0:04:23]} Qe7 {[%emt 0:02:34]} 17. a4 {[%emt 0:06:51]} a6 {[%emt 0:03:36]} 18. g4 {[%emt 0:12:22]} Rfd8 {[%emt 0:11:23]} 19. g5 {[%emt 0:06:10]} Ne8 {[%emt 0:01:40]} 20. c5 {[%emt 0:06:46]} Bxe5 {[%emt 0:02:15]} 21. dxe5 {[%emt 0:00:03]} b5 {[%emt 0:00:36]} 22. Kf2 {[%emt 0:02:49]} Rd5 {[%emt 0:01:36]} 23. Rxd5 {[%emt 0:01:14]} exd5 {[%emt 0:00:12]} 24. e6 {[%emt 0:04:24]} Bc8 {[%emt 0:10:29]} 25. Qc3 {[%emt 0:02:06]} Bxe6 {[%emt 0:00:47]} 26. Qd4 {[%emt 0:00:49]} Bf7 {[%emt 0:26:45]} 27. h4 {[%emt 0:00:20]} Kf8 {[%emt 0:01:13]} 28. h5 {[%emt 0:01:18]} Bg8 {[%emt 0:00:31]} 29. Ra1 {[%emt 0:03:30]} Ra7 {[%emt 0:03:32]} 30. Bc3 {[%emt 0:04:42]} Qc7 {[%emt 0:04:33]} 31. Bb4 {[%emt 0:01:47]} Bf7 {[%emt 0:01:03]} 32. Kg3 {[%emt 0:01:21]} Qd7 {[%emt 0:02:20]} 33. axb5 {[%emt 0:01:36]} axb5 {[%emt 0:00:05]} 34. Rxa7 {[%emt 0:00:06]} Qxa7 {[%emt 0:00:01]} 35. Bxb5 {[%emt 0:00:09]} Qa2 {[%emt 0:01:35]} 36. Bxc6 {[%emt 0:00:35]} Qe2 {[%emt 0:00:21]} 37. Qd2 {[%emt 0:01:19]} Qf3+ {[%emt 0:00:07]} 38. Kh2 {[%emt 0:00:05]} Qxh5+ {[%emt 0:00:12]} 39. Kg1 {[%emt 0:00:42]} Qg4+ {[%emt 0:00:08]} 40. Kf1 {[%emt 0:00:47]} Qf3+ {[%emt 0:00:51]} 41. Kg1 {[%emt 0:31:26]} Qg3+ {[%emt 0:30:36]} 42. Kf1 {[%emt 0:00:18]} Qf3+ {[%emt 0:00:30]} 43. Kg1 {[%emt 0:00:00]} 1/2-1/2

[Event "53rd Women Tournament 2022"]
[Site "Belgrade"]
[Date "2022.03.28"]
[Round "1.3"]
[White "Lu, Miaoyi"]
[Black "Xu, Yuanyuan"]
[Result "1-0"]
[ECO "B82"]
[WhiteElo "2182"]
[BlackElo "2317"]
[Annotator "NA"]
[PlyCount "41"]
[EventDate "2022.03.28"]
[EventType "tourn"]
[EventCountry "SRB"]
[SourceTitle "playchess.com"]
[Source "ChessBase"]
[SourceQuality "1"]
[TimeControl "40/5400+30:1800+30"]

1. e4 {[%emt 0:00:03]} c5 {[%emt 0:01:31]} 2. Nf3 {[%emt 0:00:05]} e6 {[%emt 0:00:24]} 3. d4 {[%emt 0:01:56]} cxd4 {[%emt 0:00:11]} 4. Nxd4 {[%emt 0:00:02]} a6 {[%emt 0:00:46]} 5. Nc3 {[%emt 0:01:34]} Qc7 {[%emt 0:00:48]} 6. Bd3 {[%emt 0:01:11]} Nf6 {[%emt 0:01:33]} 7. f4 {[%emt 0:01:26]} d6 {[%emt 0:00:46]} 8. Qf3 {[%emt 1:28:13]} Be7 {[%emt 0:07:00]} 9. Be3 {[%emt 0:00:00]} O-O {[%emt 0:03:36]} 10. g4 {[%emt 0:00:00]} Nc6 {[%emt 0:02:31]} 11. g5 {[%emt 0:00:00]} Nd7 {[%emt 0:01:54]} 12. O-O-O {[%emt 0:00:00]} b5 {[%emt 0:04:41]} 13. Nxc6 {[%emt 0:02:30]} Qxc6 {[%emt 1:11:19]} 14. Kb1 {[%emt 0:00:00]} Bb7 {[%emt 0:00:30]} 15. Qh3 {[%emt 0:00:00]} Nc5 {[%emt 0:00:30]} 16. Nd5 {[%emt 0:01:30]} Rfe8 {[%emt 0:00:30]} 17. Nf6+ {[%emt 0:00:00]} Bxf6 {[%emt 0:00:00]} 18. gxf6 {[%emt 0:01:00]} e5 {[%emt 0:00:00]} 19. Rhg1 {[%emt 0:00:00]} Ne6 {[%emt 0:00:00]} 20. Rxg7+ {[%emt 0:00:00]} Nxg7 {[%emt 0:00:00]} 21. Qg4 {[%emt 0:00:00]} 1-0

[Event "53rd Women Tournament 2022"]
[Site "Belgrade"]
[Date "2022.03.28"]
[Round "1.4"]
[White "Manakova, Maria"]
[Black "Srdanovic, Jovana"]
[Result "1-0"]
[ECO "B93"]
[WhiteElo "2257"]
[BlackElo "2194"]
[Annotator "NA"]
[PlyCount "81"]
[EventDate "2022.03.28"]
[EventType "tourn"]
[EventCountry "SRB"]
[SourceTitle "playchess.com"]
[Source "ChessBase"]
[SourceQuality "1"]
[TimeControl "40/5400+30:1800+30"]

1. e4 {[%emt 0:00:04]} c5 {[%emt 0:00:06]} 2. Nf3 {[%emt 0:00:10]} d6 {[%emt 0:00:07]} 3. d4 {[%emt 0:00:03]} cxd4 {[%emt 0:00:06]} 4. Nxd4 {[%emt 0:00:02]} Nf6 {[%emt 0:00:12]} 5. Nc3 {[%emt 0:00:03]} a6 {[%emt 0:00:06]} 6. Be2 {[%emt 0:00:11]} Nbd7 {[%emt 0:00:11]} 7. f4 {[%emt 0:03:25]} g6 {[%emt 0:00:08]} 8. Bf3 {[%emt 0:10:33]} Bg7 {[%emt 0:01:24]} 9. Be3 {[%emt 0:00:41]} O-O {[%emt 0:01:34]} 10. O-O {[%emt 0:03:26]} e5 {[%emt 0:04:55]} 11. Nb3 {[%emt 0:06:13]} exf4 {[%emt 0:05:43]} 12. Bxf4 {[%emt 0:01:27]} Qb6+ {[%emt 0:01:10]} 13. Kh1 {[%emt 0:00:55]} Ne5 {[%emt 0:00:34]} 14. Qe1 {[%emt 0:14:58]} Be6 {[%emt 0:05:40]} 15. Rd1 {[%emt 0:02:35]} Rac8 {[%emt 0:07:45]} 16. Be2 {[%emt 0:04:59]} Rfe8 {[%emt 0:12:30]} 17. Bg5 {[%emt 0:04:45]} Nfd7 {[%emt 0:07:17]} 18. Qd2 {[%emt 0:02:51]} Nc4 {[%emt 0:21:27]} 19. Bxc4 {[%emt 0:00:45]} Rxc4 {[%emt 0:02:13]} 20. Nd5 {[%emt 0:03:19]} Qa7 {[%emt 0:01:57]} 21. Rde1 {[%emt 0:11:35]} a5 {[%emt 0:13:38]} 22. a4 {[%emt 0:16:40]} b6 {[%emt 0:05:09]} 23. c3 {[%emt 0:10:41]} Qb7 {[%emt 0:02:54]} 24. Nd4 {[%emt 0:00:22]} Bxd4 {[%emt 0:05:07]} 25. cxd4 {[%emt 0:00:08]} Bxd5 {[%emt 0:00:11]} 26. exd5 {[%emt 0:00:04]} Rcc8 {[%emt 0:00:22]} 27. Be7 {[%emt 0:01:49]} Qxd5 {[%emt 0:00:07]} 28. Qf4 {[%emt 0:00:11]} Rc2 {[%emt 0:00:49]} 29. Qg4 {[%emt 0:00:36]} f5 {[%emt 0:00:11]} 30. Qg3 {[%emt 0:00:44]} Qxd4 {[%emt 0:00:47]} 31. Bxd6 {[%emt 0:00:55]} Rxe1 {[%emt 0:00:43]} 32. Rxe1 {[%emt 0:00:11]} Rc8 {[%emt 0:00:40]} 33. Qb3+ {[%emt 0:00:22]} Kg7 {[%emt 0:00:40]} 34. Qe6 {[%emt 0:00:23]} Qxa4 {[%emt 0:00:33]} 35. Be5+ {[%emt 0:00:42]} Kh6 {[%emt 0:00:06]} 36. Bc3 {[%emt 0:01:09]} Rc4 {[%emt 0:00:46]} 37. b3 {[%emt 0:00:27]} Qxb3 {[%emt 0:00:10]} 38. Bd2+ {[%emt 0:00:09]} Kh5 {[%emt 0:00:49]} 39. Qxd7 {[%emt 0:00:05]} h6 {[%emt 0:00:14]} 40. Qh7 {[%emt 0:00:52]} g5 {[%emt 0:00:58]} 41. Qxf5 {[%emt 0:31:30]} 1-0

[Event "53rd Women Tournament 2022"]
[Site "Belgrade"]
[Date "2022.03.28"]
[Round "1.5"]
[White "Navrotescu, Andreea"]
[Black "Benderac, Ana"]
[Result "1-0"]
[ECO "A28"]
[WhiteElo "2229"]
[BlackElo "2180"]
[Annotator "NA"]
[PlyCount "85"]
[EventDate "2022.03.28"]
[EventType "tourn"]
[EventCountry "SRB"]
[SourceTitle "playchess.com"]
[Source "ChessBase"]
[SourceQuality "1"]
[TimeControl "40/5400+30:1800+30"]

1. c4 {[%emt 0:00:04]} e5 {[%emt 0:00:17]} 2. Nc3 {[%emt 0:00:06]} Nf6 {[%emt 0:00:24]} 3. Nf3 {[%emt 0:00:09]} Nc6 {[%emt 0:00:31]} 4. e3 {[%emt 0:00:07]} h6 {[%emt 0:02:36]} 5. Qc2 {[%emt 0:07:57]} d6 {[%emt 0:10:34]} 6. a3 {[%emt 0:02:10]} Bg4 {[%emt 0:00:46]} 7. b4 {[%emt 0:03:57]} Qd7 {[%emt 0:04:35]} 8. Bb2 {[%emt 1:20:00]} a5 {[%emt 0:07:53]} 9. b5 {[%emt 0:00:00]} Nd8 {[%emt 0:00:37]} 10. Be2 {[%emt 0:00:00]} Ne6 {[%emt 0:01:38]} 11. h3 {[%emt 0:00:00]} Bh5 {[%emt 0:01:57]} 12. Nd5 {[%emt 0:00:00]} Bg6 {[%emt 0:03:17]} 13. Nxf6+ {[%emt 0:00:00]} gxf6 {[%emt 0:00:08]} 14. Qd1 {[%emt 0:00:00]} a4 {[%emt 0:08:08]} 15. d4 {[%emt 0:00:00]} Rg8 {[%emt 0:00:42]} 16. Nh4 {[%emt 0:00:00]} Ng5 {[%emt 0:03:22]} 17. Nxg6 {[%emt 0:00:00]} Rxg6 {[%emt 0:03:37]} 18. h4 {[%emt 0:00:00]} Ne4 {[%emt 0:05:47]} 19. Bf3 {[%emt 0:00:00]} f5 {[%emt 0:00:05]} 20. h5 {[%emt 0:00:00]} Re6 {[%emt 0:00:54]} 21. g4 {[%emt 0:00:00]} exd4 {[%emt 0:02:36]} 22. gxf5 {[%emt 0:00:00]} Re5 {[%emt 0:02:10]} 23. Bxd4 {[%emt 0:00:00]} Qxf5 {[%emt 0:00:07]} 24. Bxe5 {[%emt 0:00:00]} Qxe5 {[%emt 0:01:13]} 25. Qd4 {[%emt 0:00:00]} Nc5 {[%emt 0:00:05]} 26. Qxe5+ {[%emt 0:00:00]} dxe5 {[%emt 0:00:15]} 27. O-O-O {[%emt 0:00:00]} e4 {[%emt 0:06:15]} 28. Be2 {[%emt 0:00:00]} Be7 {[%emt 0:01:02]} 29. Rhg1 {[%emt 0:00:00]} Kf8 {[%emt 0:00:07]} 30. Kb2 {[%emt 0:00:00]} b6 {[%emt 0:01:34]} 31. Ka2 {[%emt 0:00:00]} Bh4 {[%emt 0:00:52]} 32. Rg2 {[%emt 0:00:00]} Re8 {[%emt 0:00:12]} 33. Rd5 {[%emt 0:00:00]} Re6 {[%emt 0:01:37]} 34. Rh2 {[%emt 0:00:00]} Be7 {[%emt 0:00:35]} 35. Bg4 {[%emt 0:00:00]} Rf6 {[%emt 0:00:24]} 36. Bf5 {[%emt 0:00:00]} c6 {[%emt 0:11:10]} 37. bxc6 {[%emt 0:00:00]} Rxc6 {[%emt 0:00:04]} 38. Rg2 {[%emt 0:00:20]} Nb3 {[%emt 0:03:01]} 39. Bxe4 {[%emt 0:02:42]} Rxc4 {[%emt 0:00:31]} 40. Bh7 {[%emt 0:02:17]} Nc1+ {[%emt 0:00:28]} 41. Kb1 {[%emt 0:33:49]} Bxa3 {[%emt 0:32:33]} 42. Rd7 {[%emt 0:01:20]} Ke8 {[%emt 0:00:57]} 43. Ra7 {[%emt 0:01:32]} 1-0

[Event "53rd Women Tournament 2022"]
[Site "Belgrade"]
[Date "2022.03.29"]
[Round "2.3"]
[White "Xu, Yuanyuan"]
[Black "Manakova, Maria"]
[Result "0-1"]
[ECO "A16"]
[WhiteElo "2317"]
[BlackElo "2257"]
[Annotator "NA"]
[PlyCount "156"]
[EventDate "2022.03.28"]
[EventType "tourn"]
[EventCountry "SRB"]
[SourceTitle "playchess.com"]
[Source "ChessBase"]
[SourceQuality "1"]
[TimeControl "40/5400+30:1800+30"]

1. Nf3 {[%emt 1:31:00]} Nf6 {[%emt 0:05:06]} 2. c4 {[%emt 0:00:00]} g6 {[%emt 0:00:44]} 3. Nc3 {[%emt 0:00:00]} d5 {[%emt 0:01:15]} 4. cxd5 {[%emt 0:00:00]} Nxd5 {[%emt 0:00:05]} 5. h4 {[%emt 0:02:00]} Bg7 {[%emt 1:25:50]} 6. h5 {[%emt 0:00:30]} Nc6 {[%emt 0:00:00]} 7. h6 {[%emt 0:00:30]} Bf6 {[%emt 0:00:00]} 8. Ne4 {[%emt 0:00:30]} e5 {[%emt 0:00:00]} 9. Nxf6+ {[%emt 0:00:00]} Qxf6 {[%emt 0:00:00]} 10. d3 {[%emt 0:01:00]} Qd6 {[%emt 0:00:00]} 11. g3 {[%emt 0:00:30]} f6 {[%emt 0:03:00]} 12. Bg2 {[%emt 0:00:30]} Be6 {[%emt 0:00:30]} 13. Nd2 {[%emt 0:00:30]} f5 {[%emt 0:00:00]} 14. Nc4 {[%emt 0:00:30]} Qd7 {[%emt 0:01:00]} 15. Bg5 {[%emt 0:00:00]} O-O {[%emt 0:00:00]} 16. Rc1 {[%emt 0:01:00]} f4 {[%emt 0:01:00]} 17. Nd2 {[%emt 0:00:30]} fxg3 {[%emt 0:00:00]} 18. fxg3 {[%emt 0:00:30]} Nd4 {[%emt 0:01:00]} 19. Nf3 {[%emt 0:00:30]} Nf5 {[%emt 0:00:00]} 20. Qd2 {[%emt 0:00:00]} Nxg3 {[%emt 0:00:00]} 21. Nxe5 {[%emt 0:01:00]} Qd6 {[%emt 0:00:00]} 22. Nc4 {[%emt 0:00:30]} Qd7 {[%emt 0:00:00]} 23. Rg1 {[%emt 0:00:00]} Bh3 {[%emt 0:02:30]} 24. Bxd5+ {[%emt 0:00:00]} Qxd5 {[%emt 0:00:00]} 25. Qc3 {[%emt 0:00:00]} Nf5 {[%emt 0:01:00]} 26. e4 {[%emt 0:00:00]} Qd4 {[%emt 0:00:00]} 27. Ne3 {[%emt 0:00:00]} Qxc3+ {[%emt 0:00:00]} 28. Rxc3 {[%emt 0:00:53]} Nxe3 {[%emt 0:00:00]} 29. Bxe3 {[%emt 0:00:06]} c6 {[%emt 0:00:00]} 30. d4 {[%emt 0:03:01]} Be6 {[%emt 0:02:30]} 31. a3 {[%emt 0:00:00]} Rae8 {[%emt 0:00:00]} 32. Kd2 {[%emt 0:00:00]} Bd7 {[%emt 0:00:00]} 33. e5 {[%emt 0:00:00]} Be6 {[%emt 0:00:00]} 34. b4 {[%emt 0:00:00]} a6 {[%emt 0:02:00]} 35. Ke2 {[%emt 0:00:38]} Bd5 {[%emt 0:00:00]} 36. Bg5 {[%emt 0:00:11]} Rf5 {[%emt 0:01:00]} 37. Re3 {[%emt 0:02:41]} Bc4+ {[%emt 0:00:30]} 38. Ke1 {[%emt 0:00:00]} b5 {[%emt 0:00:00]} 39. Reg3 {[%emt 0:00:00]} Kf7 {[%emt 0:01:00]} 40. R1g2 {[%emt 0:00:27]} Rf1+ {[%emt 0:00:00]} 41. Kd2 {[%emt 0:31:33]} Ke6 {[%emt 0:28:16]} 42. Rg1 {[%emt 0:00:00]} Rf2+ {[%emt 0:00:00]} 43. Ke3 {[%emt 0:01:00]} Re2+ {[%emt 0:00:00]} 44. Kf3 {[%emt 0:00:30]} Kd5 {[%emt 0:04:14]} 45. Rd1 {[%emt 0:00:30]} Rf8+ {[%emt 0:00:00]} 46. Bf6 {[%emt 0:00:30]} Rh2 {[%emt 0:01:00]} 47. Ke3 {[%emt 0:00:00]} Rf7 {[%emt 0:00:00]} 48. Rgg1 {[%emt 0:01:00]} Rh3+ {[%emt 0:00:00]} 49. Kf4 {[%emt 0:00:00]} Rxh6 {[%emt 0:00:00]} 50. Rh1 {[%emt 0:00:00]} Rxh1 {[%emt 0:00:00]} 51. Rxh1 {[%emt 0:00:00]} Ke6 {[%emt 0:00:00]} 52. Kg5 {[%emt 0:00:00]} Rd7 {[%emt 0:03:00]} 53. Rh4 {[%emt 0:00:00]} Bd3 {[%emt 0:00:00]} 54. Kh6 {[%emt 0:03:00]} Bf5 {[%emt 0:00:00]} 55. Rf4 {[%emt 0:00:30]} Kd5 {[%emt 0:01:30]} 56. Bg7 {[%emt 0:00:00]} Bd3 {[%emt 0:00:00]} 57. Rf8 {[%emt 0:00:00]} g5 {[%emt 0:00:00]} 58. Bf6 {[%emt 0:01:30]} g4 {[%emt 0:00:00]} 59. Bh4 {[%emt 0:00:30]} Bc4 {[%emt 0:00:00]} 60. Rf4 {[%emt 0:00:00]} Be2 {[%emt 0:00:00]} 61. Rf6 {[%emt 0:00:00]} Bd3 {[%emt 0:01:24]} 62. Rf4 {[%emt 0:00:00]} Kc4 {[%emt 0:02:06]} 63. Rxg4 {[%emt 0:00:40]} Rxd4 {[%emt 0:00:00]} 64. Rxd4+ {[%emt 0:00:31]} Kxd4 {[%emt 0:00:00]} 65. e6 {[%emt 0:00:09]} Kc3 {[%emt 0:00:00]} 66. e7 {[%emt 0:00:16]} Bg6 {[%emt 0:00:00]} 67. Kg7 {[%emt 0:01:46]} Kb2 {[%emt 0:00:00]} 68. Bg3 {[%emt 0:00:10]} Kxa3 {[%emt 0:00:08]} 69. Bd6 {[%emt 0:01:28]} Ka4 {[%emt 0:00:42]} 70. e8=Q {[%emt 0:00:00]} Bxe8 {[%emt 0:00:03]} 71. Kxh7 {[%emt 0:00:00]} a5 {[%emt 0:00:08]} 72. bxa5 {[%emt 0:00:00]} Kxa5 {[%emt 0:00:08]} 73. Kh6 {[%emt 0:02:00]} b4 {[%emt 0:01:18]} 74. Kg5 {[%emt 0:00:00]} Kb5 {[%emt 0:00:12]} 75. Kf4 {[%emt 0:00:00]} Kc4 {[%emt 0:00:08]} 76. Ke3 {[%emt 0:00:00]} Kc3 {[%emt 0:04:13]} 77. Ke2 {[%emt 0:00:00]} Bh5+ {[%emt 0:00:00]} 78. Ke3 {[%emt 0:00:00]} b3 {[%emt 0:00:00]} 0-1

[Event "53rd Women Tournament 2022"]
[Site "Belgrade"]
[Date "2022.03.29"]
[Round "2.5"]
[White "Toncheva, Nadya"]
[Black "Grozdanovic, Anastasia"]
[Result "1-0"]
[ECO "B19"]
[WhiteElo "2207"]
[BlackElo "2005"]
[Annotator "NA"]
[PlyCount "95"]
[EventDate "2022.03.28"]
[EventType "tourn"]
[EventCountry "SRB"]
[SourceTitle "playchess.com"]
[Source "ChessBase"]
[SourceQuality "1"]
[TimeControl "40/5400+30:1800+30"]

1. e4 {[%emt 0:00:02]} c6 {[%emt 0:00:08]} 2. d4 {[%emt 0:00:05]} d5 {[%emt 0:00:11]} 3. Nc3 {[%emt 0:00:03]} dxe4 {[%emt 0:00:16]} 4. Nxe4 {[%emt 0:00:02]} Bf5 {[%emt 0:00:08]} 5. Ng3 {[%emt 0:00:04]} Bg6 {[%emt 0:00:06]} 6. h4 {[%emt 0:00:04]} h6 {[%emt 0:00:25]} 7. Nf3 {[%emt 0:00:05]} Nd7 {[%emt 0:01:01]} 8. Bd3 {[%emt 0:00:04]} Bxd3 {[%emt 0:00:05]} 9. Qxd3 {[%emt 0:00:03]} Qc7 {[%emt 0:00:32]} 10. Bd2 {[%emt 0:00:11]} Ngf6 {[%emt 0:00:55]} 11. Ne4 {[%emt 0:01:10]} e6 {[%emt 0:02:41]} 12. O-O-O {[%emt 0:00:55]} Rd8 {[%emt 0:01:05]} 13. Nxf6+ {[%emt 0:02:55]} Nxf6 {[%emt 0:00:09]} 14. Qe2 {[%emt 0:00:02]} c5 {[%emt 0:08:17]} 15. dxc5 {[%emt 0:15:04]} Bxc5 {[%emt 0:05:49]} 16. Bc3 {[%emt 0:00:27]} Rxd1+ {[%emt 0:09:47]} 17. Rxd1 {[%emt 0:00:16]} O-O {[%emt 0:01:27]} 18. Kb1 {[%emt 0:11:12]} Rd8 {[%emt 0:06:18]} 19. Rxd8+ {[%emt 0:17:36]} Qxd8 {[%emt 0:00:08]} 20. Bxf6 {[%emt 0:00:03]} Qxf6 {[%emt 0:05:05]} 21. a3 {[%emt 0:02:01]} Bb6 {[%emt 0:06:14]} 22. Ka2 {[%emt 0:03:59]} Qg6 {[%emt 0:01:01]} 23. g3 {[%emt 0:02:08]} Qh5 {[%emt 0:01:39]} 24. b4 {[%emt 0:02:31]} a5 {[%emt 0:06:20]} 25. c4 {[%emt 0:03:13]} axb4 {[%emt 0:06:01]} 26. axb4 {[%emt 0:00:06]} Qg4 {[%emt 0:01:24]} 27. Kb3 {[%emt 0:04:19]} Qf5 {[%emt 0:03:50]} 28. Kb2 {[%emt 0:04:23]} Bd8 {[%emt 0:06:28]} 29. Qe3 {[%emt 0:02:25]} Bf6+ {[%emt 0:00:48]} 30. Kc1 {[%emt 0:00:03]} Qg4 {[%emt 0:01:55]} 31. Qd3 {[%emt 0:01:45]} Qh3 {[%emt 0:05:43]} 32. Kd2 {[%emt 0:00:50]} Qh1 {[%emt 0:01:46]} 33. Ne1 {[%emt 0:03:41]} Be7 {[%emt 0:02:12]} 34. c5 {[%emt 0:01:28]} Qc6 {[%emt 0:02:18]} 35. Qd4 {[%emt 0:24:45]} Bf6 {[%emt 0:01:28]} 36. Qc4 {[%emt 0:00:00]} Qd7+ {[%emt 0:02:58]} 37. Ke2 {[%emt 0:00:00]} e5 {[%emt 0:02:57]} 38. Nc2 {[%emt 0:00:00]} Qf5 {[%emt 0:01:07]} 39. Ne3 {[%emt 0:00:00]} Qb1 {[%emt 0:02:05]} 40. b5 {[%emt 0:00:00]} e4 {[%emt 0:03:36]} 41. c6 {[%emt 0:14:43]} bxc6 {[%emt 0:31:43]} 42. bxc6 {[%emt 0:00:06]} Bd8 {[%emt 0:00:20]} 43. Nc2 {[%emt 0:01:53]} Qb6 {[%emt 0:01:28]} 44. Qxe4 {[%emt 0:00:24]} Kf8 {[%emt 0:00:00]} 45. Ne3 {[%emt 0:00:00]} Qb2+ {[%emt 0:00:00]} 46. Kf1 {[%emt 0:00:00]} Bb6 {[%emt 0:00:00]} 47. Kg2 {[%emt 0:00:00]} Qf6 {[%emt 0:00:00]} 48. Qb4+ {[%emt 0:19:24]} 1-0

[Event "53rd Women Tournament 2022"]
[Site "Belgrade"]
[Date "2022.03.30"]
[Round "3.1"]
[White "Grozdanovic, Anastasia"]
[Black "Chelushkina, Irina"]
[Result "0-1"]
[ECO "A95"]
[WhiteElo "2005"]
[BlackElo "2183"]
[Annotator "NA"]
[PlyCount "122"]
[EventDate "2022.03.28"]
[EventType "tourn"]
[EventCountry "SRB"]
[SourceTitle "playchess.com"]
[Source "ChessBase"]
[SourceQuality "1"]
[TimeControl "40/5400+30:1800+30"]

1. d4 {[%emt 0:00:02]} e6 {[%emt 0:00:15]} 2. c4 {[%emt 0:00:15]} f5 {[%emt 0:00:55]} 3. Nf3 {[%emt 0:00:47]} Nf6 {[%emt 0:00:10]} 4. g3 {[%emt 0:01:20]} Be7 {[%emt 0:00:52]} 5. Bg2 {[%emt 0:01:46]} O-O {[%emt 0:00:09]} 6. O-O {[%emt 0:00:28]} d5 {[%emt 0:00:03]} 7. Nc3 {[%emt 0:01:50]} c6 {[%emt 0:01:15]} 8. Re1 {[%emt 0:06:13]} Na6 {[%emt 0:00:27]} 9. a3 {[%emt 0:09:55]} Bd7 {[%emt 0:03:22]} 10. b4 {[%emt 0:03:38]} Nc7 {[%emt 0:00:52]} 11. Bb2 {[%emt 0:04:56]} Be8 {[%emt 0:03:36]} 12. c5 {[%emt 0:10:41]} Nd7 {[%emt 0:01:26]} 13. a4 {[%emt 0:03:39]} g5 {[%emt 0:02:09]} 14. e3 {[%emt 0:05:19]} Bf6 {[%emt 0:02:01]} 15. Ne2 {[%emt 0:01:22]} Bh5 {[%emt 0:02:47]} 16. Ne5 {[%emt 0:01:29]} Bxe5 {[%emt 0:11:02]} 17. dxe5 {[%emt 0:00:12]} a5 {[%emt 0:03:12]} 18. bxa5 {[%emt 0:04:03]} Rxa5 {[%emt 0:02:39]} 19. Bc3 {[%emt 0:00:05]} Ra8 {[%emt 0:00:53]} 20. Bd4 {[%emt 0:01:22]} Na6 {[%emt 0:01:37]} 21. Qc2 {[%emt 0:02:55]} Qa5 {[%emt 0:05:09]} 22. Rec1 {[%emt 0:03:01]} Naxc5 {[%emt 0:13:18]} 23. g4 {[%emt 0:03:57]} Bg6 {[%emt 0:12:58]} 24. Bxc5 {[%emt 0:02:14]} f4 {[%emt 0:00:05]} 25. Qc3 {[%emt 0:02:36]} Nxc5 {[%emt 0:02:30]} 26. Qxc5 {[%emt 0:00:30]} f3 {[%emt 0:01:57]} 27. Qxa5 {[%emt 0:03:04]} Rxa5 {[%emt 0:00:06]} 28. Bxf3 {[%emt 0:00:37]} Rxf3 {[%emt 0:00:05]} 29. Nd4 {[%emt 0:00:49]} Rf7 {[%emt 0:02:04]} 30. Nxe6 {[%emt 0:00:58]} Re7 {[%emt 0:00:01]} 31. Nxg5 {[%emt 0:00:08]} Rxe5 {[%emt 0:00:08]} 32. Nf3 {[%emt 0:01:30]} Re4 {[%emt 0:00:06]} 33. h3 {[%emt 0:01:39]} Rexa4 {[%emt 0:00:20]} 34. Rxa4 {[%emt 0:00:11]} Rxa4 {[%emt 0:00:03]} 35. Ne5 {[%emt 0:02:33]} Be8 {[%emt 0:00:20]} 36. f4 {[%emt 0:01:57]} Kf8 {[%emt 0:00:20]} 37. Kf2 {[%emt 0:05:14]} Ke7 {[%emt 0:02:10]} 38. g5 {[%emt 0:00:47]} Ke6 {[%emt 0:01:14]} 39. Ng4 {[%emt 0:01:24]} Bg6 {[%emt 0:03:18]} 40. Nf6 {[%emt 0:02:51]} h5 {[%emt 0:02:01]} 41. Rc3 {[%emt 0:37:26]} h4 {[%emt 0:32:29]} 42. Rb3 {[%emt 0:00:00]} b5 {[%emt 0:00:00]} 43. Rb2 {[%emt 0:00:00]} Bf5 {[%emt 0:00:00]} 44. Kf3 {[%emt 0:00:00]} Ra3 {[%emt 0:00:00]} 45. Ne8 {[%emt 0:00:00]} Bg6 {[%emt 0:00:00]} 46. Ng7+ {[%emt 0:00:00]} Kf7 {[%emt 0:00:00]} 47. f5 {[%emt 0:00:00]} Kxg7 {[%emt 0:00:00]} 48. fxg6 {[%emt 0:00:00]} Ra4 {[%emt 0:00:00]} 49. Rg2 {[%emt 0:00:00]} Kxg6 {[%emt 0:00:00]} 50. Rg1 {[%emt 0:00:00]} Rc4 {[%emt 0:00:00]} 51. Ke2 {[%emt 0:00:00]} b4 {[%emt 0:00:00]} 52. Kd3 {[%emt 0:00:00]} c5 {[%emt 0:00:00]} 53. Kd2 {[%emt 0:00:00]} Re4 {[%emt 0:00:00]} 54. Kd3 {[%emt 0:00:00]} c4+ {[%emt 0:00:00]} 55. Kd2 {[%emt 0:00:00]} d4 {[%emt 0:00:00]} 56. exd4 {[%emt 0:00:00]} Rxd4+ {[%emt 0:00:00]} 57. Kc2 {[%emt 0:00:00]} Rf4 {[%emt 0:00:00]} 58. Rg2 {[%emt 0:00:00]} Rf3 {[%emt 0:00:00]} 59. Rg4 {[%emt 0:00:00]} b3+ {[%emt 0:00:00]} 60. Kb2 {[%emt 0:00:00]} Rf2+ {[%emt 0:00:00]} 61. Kc3 {[%emt 0:00:17]} Rc2+ {[%emt 0:00:00]} 0-1